[Event "Asian Amateur Rapid 2024"]
[Site "Al Ain"]
[Date "2024.12.15"]
[Round "3.42"]
[White "Alymjanov, Mekan"]
[Black "Amirgali, Nurali"]
[Result "1-0"]
[ECO "E73"]
[WhiteElo "1480"]
[BlackElo "1572"]
[Annotator "NA RC"]
[PlyCount "55"]
[EventDate "2024.12.15"]
[EventType "swiss"]
[EventCountry "UAE"]
[SourceTitle "playchess.com"]
[Source "ChessBase"]
[SourceQuality "1"]
[TimeControl "900+10"]

1. d4 {[%emt 0:00:03]} g6 {[%emt 0:00:01]} 2. c4 {[%emt 0:00:01]} Bg7 {[%emt 0:00:01]} 3. Nc3 {[%emt 0:00:00]} d6 {[%emt 0:00:02]} 4. e4 {[%emt 0:00:01]} Nf6 {[%emt 0:00:02]} 5. Be2 {[%emt 0:00:03]} O-O {[%emt 0:00:02]} 6. g4 {[%emt 0:00:09]} e5 {[%emt 0:01:57]} 7. d5 {[%emt 0:00:05]} c6 {[%emt 0:00:35]} 8. h4 {[%emt 0:00:01]} Qb6 {[%emt 0:01:54]} 9. g5 {[%emt 0:00:17]} Ne8 {[%emt 0:00:51]} 10. h5 {[%emt 0:00:07]} Qd4 {[%emt 0:00:33]} 11. Bd2 {[%emt 0:00:44]} Na6 {[%emt 0:01:32]} 12. Qc1 {[%emt 0:00:27]} Qb6 {[%emt 0:00:55]} 13. Be3 {[%emt 0:00:45]} Qd8 {[%emt 0:00:18]} 14. Qd2 {[%emt 0:00:51]} Nec7 {[%emt 0:01:37]} 15. O-O-O {[%emt 0:00:02]} c5 {[%emt 0:00:10]} 16. f4 {[%emt 0:00:22]} Bd7 {[%emt 0:00:58]} 17. Rf1 {[%emt 0:01:03]} Qc8 {[%emt 0:01:25]} 18. Bd3 {[%emt 0:00:26]} exf4 {[%emt 0:05:17]} 19. Bxf4 {[%emt 0:00:05]} Be5 {[%emt 0:00:00]} 20. Bxe5 {[%emt 0:00:10]} dxe5 {[%emt 0:00:00]} 21. hxg6 {[%emt 0:00:01]} fxg6 {[%emt 0:00:00]} 22. Qh2 {[%emt 0:00:27]} Rxf1+ {[%emt 0:00:00]} 23. Bxf1 {[%emt 0:00:01]} h5 {[%emt 0:00:00]} 24. gxh6 {[%emt 0:00:06]} Kh7 {[%emt 0:00:00]} 25. Qxe5 {[%emt 0:00:08]} Qf8 {[%emt 0:00:00]} 26. Nf3 {[%emt 0:00:17]} Re8 {[%emt 0:00:00]} 27. Ng5+ {[%emt 0:00:07]} Kg8 {[%emt 0:00:00]} 28. h7# {[%emt 0:00:14]} 1-0

[Event "Asian Amateur Rapid 2024"]
[Site "Al Ain"]
[Date "2024.12.15"]
[Round "4.1"]
[White "Ahmad, Al Romaithi"]
[Black "Rashid Husain Alhammadi"]
[Result "1-0"]
[ECO "C88"]
[WhiteElo "1976"]
[BlackElo "1914"]
[Annotator "RC"]
[PlyCount "53"]
[EventDate "2024.12.15"]
[EventType "swiss"]
[EventCountry "UAE"]
[SourceTitle "playchess.com"]
[Source "ChessBase"]
[SourceQuality "1"]
[TimeControl "900+10"]

1. e4 {[%emt 0:00:01]} e5 {[%emt 0:00:01]} 2. Nf3 {[%emt 0:00:03]} Nc6 {[%emt 0:00:01]} 3. Bb5 {[%emt 0:00:03]} a6 {[%emt 0:00:01]} 4. Ba4 {[%emt 0:00:02]} Nf6 {[%emt 0:00:03]} 5. O-O {[%emt 0:00:08]} Be7 {[%emt 0:00:01]} 6. Re1 {[%emt 0:00:06]} b5 {[%emt 0:00:01]} 7. Bb3 {[%emt 0:00:01]} O-O {[%emt 0:00:02]} 8. a4 {[%emt 0:00:14]} b4 {[%emt 0:01:40]} 9. a5 {[%emt 0:00:31]} Bc5 {[%emt 0:03:45]} 10. d3 {[%emt 0:00:32]} d5 {[%emt 0:01:31]} 11. exd5 {[%emt 0:00:23]} Nxd5 {[%emt 0:00:02]} 12. Nxe5 {[%emt 0:02:23]} Qh4 {[%emt 0:02:50]} 13. Qf3 {[%emt 0:06:06]} Nxe5 {[%emt 0:06:34]} 14. Rxe5 {[%emt 0:00:02]} Bb7 {[%emt 0:00:41]} 15. Bxd5 {[%emt 0:00:53]} Bxd5 {[%emt 0:00:12]} 16. Rxd5 {[%emt 0:00:02]} Rae8 {[%emt 0:00:06]} 17. Bd2 {[%emt 0:00:44]} Bd6 {[%emt 0:00:10]} 18. Rh5 {[%emt 0:00:47]} Qe7 {[%emt 0:00:12]} 19. Be3 {[%emt 0:00:08]} g6 {[%emt 0:00:10]} 20. Rh3 {[%emt 0:00:13]} Qe5 {[%emt 0:00:12]} 21. c3 {[%emt 0:00:32]} bxc3 {[%emt 0:00:14]} 22. Nxc3 {[%emt 0:00:07]} Rb8 {[%emt 0:00:00]} 23. Ne4 {[%emt 0:00:13]} Be7 {[%emt 0:00:17]} 24. d4 {[%emt 0:00:08]} Qe6 {[%emt 0:00:07]} 25. d5 {[%emt 0:00:15]} Qe5 {[%emt 0:00:01]} 26. Bc5 {[%emt 0:00:24]} Qxb2 {[%emt 0:00:13]} 27. Rd1 {[%emt 0:00:15]} 1-0

[Event "Asian Amateur Rapid 2024"]
[Site "Al Ain"]
[Date "2024.12.15"]
[Round "4.2"]
[White "Vivaan Sachdev"]
[Black "AbuAzizah, Raji"]
[Result "1-0"]
[ECO "B22"]
[WhiteElo "1824"]
[BlackElo "2161"]
[Annotator "RC"]
[PlyCount "83"]
[EventDate "2024.12.15"]
[EventType "swiss"]
[EventCountry "UAE"]
[SourceTitle "playchess.com"]
[Source "ChessBase"]
[SourceQuality "1"]
[TimeControl "900+10"]

1. e4 {[%emt 0:00:38]} c5 {[%emt 0:00:01]} 2. c3 {[%emt 0:00:03]} e6 {[%emt 0:00:04]} 3. d4 {[%emt 0:00:04]} Nf6 {[%emt 0:00:19]} 4. e5 {[%emt 0:00:15]} Nd5 {[%emt 0:00:02]} 5. Nf3 {[%emt 0:00:03]} cxd4 {[%emt 0:00:06]} 6. cxd4 {[%emt 0:00:01]} d6 {[%emt 0:00:01]} 7. Bc4 {[%emt 0:00:05]} Nc6 {[%emt 0:00:34]} 8. O-O {[%emt 0:00:08]} Be7 {[%emt 0:00:10]} 9. Bd2 {[%emt 0:00:20]} O-O {[%emt 0:00:13]} 10. Nc3 {[%emt 0:00:02]} dxe5 {[%emt 0:01:21]} 11. dxe5 {[%emt 0:00:03]} Qc7 {[%emt 0:00:23]} 12. Bxd5 {[%emt 0:00:12]} exd5 {[%emt 0:00:22]} 13. Nxd5 {[%emt 0:00:01]} Qd8 {[%emt 0:00:09]} 14. Bc3 {[%emt 0:01:53]} Bg4 {[%emt 0:00:28]} 15. h3 {[%emt 0:00:21]} Bh5 {[%emt 0:00:01]} 16. Qd3 {[%emt 0:00:34]} Re8 {[%emt 0:00:40]} 17. Rad1 {[%emt 0:00:18]} Bf8 {[%emt 0:01:45]} 18. Qf5 {[%emt 0:01:03]} Bg6 {[%emt 0:00:28]} 19. Qf4 {[%emt 0:00:02]} Qb8 {[%emt 0:00:11]} 20. Rfe1 {[%emt 0:00:39]} b5 {[%emt 0:00:02]} 21. b3 {[%emt 0:02:03]} a5 {[%emt 0:00:16]} 22. a4 {[%emt 0:02:09]} b4 {[%emt 0:00:24]} 23. Bb2 {[%emt 0:00:18]} Bc2 {[%emt 0:00:02]} 24. Rc1 {[%emt 0:02:09]} Bxb3 {[%emt 0:00:10]} 25. Nf6+ {[%emt 0:00:08]} gxf6 {[%emt 0:00:08]} 26. Rxc6 {[%emt 0:00:04]} Bg7 {[%emt 0:00:36]} 27. Qg4 {[%emt 0:01:42]} fxe5 {[%emt 0:04:05]} 28. Rxe5 {[%emt 0:03:13]} Rxe5 {[%emt 0:00:56]} 29. Bxe5 {[%emt 0:00:04]} Qf8 {[%emt 0:00:01]} 30. Nd4 {[%emt 0:00:05]} Bd1 {[%emt 0:05:11]} 31. Qg3 {[%emt 0:01:12]} Kh8 {[%emt 0:00:07]} 32. Nf5 {[%emt 0:00:09]} f6 {[%emt 0:00:18]} 33. Bd6 {[%emt 0:00:06]} Qg8 {[%emt 0:00:17]} 34. Rc7 {[%emt 0:00:24]} Bf8 {[%emt 0:00:00]} 35. Qd3 {[%emt 0:00:15]} Bh5 {[%emt 0:00:28]} 36. Ne7 {[%emt 0:00:03]} Bxe7 {[%emt 0:00:10]} 37. Bxe7 {[%emt 0:00:03]} Qg6 {[%emt 0:00:24]} 38. Qd4 {[%emt 0:00:13]} Ra6 {[%emt 0:00:25]} 39. Rc8+ {[%emt 0:00:03]} Kg7 {[%emt 0:00:01]} 40. Bf8+ {[%emt 0:00:02]} Kf7 {[%emt 0:00:01]} 41. Qd7+ {[%emt 0:00:01]} Kg8 {[%emt 0:00:04]} 42. Bh6+ {[%emt 0:00:09]} 1-0

[Event "Asian Amateur Rapid 2024"]
[Site "Al Ain"]
[Date "2024.12.15"]
[Round "4.3"]
[White "Farhaan, M."]
[Black "Hamdan Edrees, Alhamed"]
[Result "1/2-1/2"]
[ECO "E18"]
[WhiteElo "1695"]
[BlackElo "1939"]
[Annotator "RC"]
[PlyCount "76"]
[EventDate "2024.12.15"]
[EventType "swiss"]
[EventCountry "UAE"]
[SourceTitle "playchess.com"]
[Source "ChessBase"]
[SourceQuality "1"]
[TimeControl "900+10"]

1. d4 {[%emt 0:00:02]} Nf6 {[%emt 0:00:01]} 2. c4 {[%emt 0:00:01]} e6 {[%emt 0:00:01]} 3. Nf3 {[%emt 0:00:05]} b6 {[%emt 0:00:05]} 4. g3 {[%emt 0:00:04]} Bb7 {[%emt 0:00:02]} 5. Bg2 {[%emt 0:00:01]} Bb4+ {[%emt 0:00:06]} 6. Bd2 {[%emt 0:00:02]} Be7 {[%emt 0:00:04]} 7. Nc3 {[%emt 0:00:02]} O-O {[%emt 0:00:04]} 8. O-O {[%emt 0:00:02]} d5 {[%emt 0:00:04]} 9. cxd5 {[%emt 0:00:02]} exd5 {[%emt 0:00:02]} 10. Rc1 {[%emt 0:00:03]} a6 {[%emt 0:00:03]} 11. Bf4 {[%emt 0:00:11]} Bd6 {[%emt 0:00:12]} 12. Ne5 {[%emt 0:00:28]} Nbd7 {[%emt 0:00:10]} 13. Qb3 {[%emt 0:00:13]} Re8 {[%emt 0:00:51]} 14. Nxd5 {[%emt 0:01:54]} Nxd5 {[%emt 0:01:09]} 15. Bxd5 {[%emt 0:00:02]} Bxd5 {[%emt 0:00:01]} 16. Qxd5 {[%emt 0:00:02]} Nxe5 {[%emt 0:00:03]} 17. dxe5 {[%emt 0:00:05]} Bxe5 {[%emt 0:00:03]} 18. Qxd8 {[%emt 0:02:08]} Raxd8 {[%emt 0:00:02]} 19. Bxe5 {[%emt 0:00:40]} Rxe5 {[%emt 0:00:03]} 20. e3 {[%emt 0:00:24]} c5 {[%emt 0:00:03]} 21. Rc2 {[%emt 0:00:09]} Red5 {[%emt 0:00:16]} 22. Kg2 {[%emt 0:00:01]} Rd2 {[%emt 0:00:02]} 23. Rfc1 {[%emt 0:00:02]} Kf8 {[%emt 0:00:02]} 24. Kf1 {[%emt 0:00:05]} Rxc2 {[%emt 0:00:25]} 25. Rxc2 {[%emt 0:00:01]} Rd1+ {[%emt 0:00:01]} 26. Ke2 {[%emt 0:00:02]} Ra1 {[%emt 0:00:02]} 27. a3 {[%emt 0:00:07]} Ke7 {[%emt 0:00:02]} 28. Rd2 {[%emt 0:00:02]} b5 {[%emt 0:00:08]} 29. Kd3 {[%emt 0:00:05]} Rc1 {[%emt 0:00:22]} 30. Ke4 {[%emt 0:00:06]} b4 {[%emt 0:00:25]} 31. axb4 {[%emt 0:01:07]} cxb4 {[%emt 0:00:02]} 32. f4 {[%emt 0:00:08]} a5 {[%emt 0:00:14]} 33. g4 {[%emt 0:00:44]} b3 {[%emt 0:00:04]} 34. Rd5 {[%emt 0:00:49]} a4 {[%emt 0:00:23]} 35. Ra5 {[%emt 0:00:08]} Ra1 {[%emt 0:00:24]} 36. Kd3 {[%emt 0:00:08]} Rb1 {[%emt 0:01:29]} 37. Rxa4 {[%emt 0:00:28]} Rxb2 {[%emt 0:00:01]} 38. Kc3 {[%emt 0:00:11]} Rxh2 {[%emt 0:00:16]} 1/2-1/2

[Event "Asian Amateur Rapid 2024"]
[Site "Al Ain"]
[Date "2024.12.15"]
[Round "4.4"]
[White "Shelke Omkar"]
[Black "Abdulrahim, Salem"]
[Result "0-1"]
[ECO "D38"]
[WhiteElo "1764"]
[BlackElo "1843"]
[Annotator "NA COMBH"]
[PlyCount "92"]
[EventDate "2024.12.15"]
[EventType "swiss"]
[EventCountry "UAE"]
[SourceTitle "playchess.com"]
[Source "ChessBase"]
[SourceQuality "1"]
[TimeControl "900+10"]

1. d4 {[%emt 0:00:01]} Nf6 {[%emt 0:00:02]} 2. c4 {[%emt 0:00:04]} e6 {[%emt 0:00:01]} 3. Nf3 {[%emt 0:00:02]} d5 {[%emt 0:00:02]} 4. Nc3 {[%emt 0:00:37]} Bb4 {[%emt 0:00:11]} 5. Qb3 {[%emt 0:00:35]} Bxc3+ {[%emt 0:02:38]} 6. bxc3 {[%emt 0:00:43] D38: Queen's Gambit Declined: Ragozin Defence (4 Nf3 Bb4).} O-O {[%emt 0:00:05]} 7. Bg5 {[%emt 0:00:32]} c6 {[%emt 0:00:01]} 8. e3 {[%emt 0:00:09]} Nbd7 {[%emt 0:00:04]} 9. Bd3 {[%emt 0:00:19]} h6 {[%emt 0:00:06]} 10. Bh4 {[%emt 0:00:03]} b6 {[%emt 0:00:02]} 11. O-O {[%emt 0:01:35]} Ba6 {[%emt 0:00:30]} 12. Rfd1 {[%emt 0:00:06]} Bxc4 {[%emt 0:00:13]} 13. Bxc4 {[%emt 0:00:02]} dxc4 {[%emt 0:00:01]} 14. Qxc4 {[%emt 0:00:17]} Qc7 {[%emt 0:00:02]} 15. Qd3 {[%emt 0:00:15]} c5 {[%emt 0:00:54]} 16. a4 {[%emt 0:03:19]} Rac8 {[%emt 0:00:12]} 17. a5 {[%emt 0:01:56]} bxa5 {[%emt 0:00:25]} 18. Qa6 {[%emt 0:01:02]} Nd5 {[%emt 0:01:22]} 19. c4 {[%emt 0:00:57]} Nc3 {[%emt 0:00:30]} 20. Rd3 {[%emt 0:00:35]} cxd4 {[%emt 0:01:08]} 21. Nxd4 {[%emt 0:01:03]} Qxc4 {[%emt 0:00:05]} 22. Qxc4 {[%emt 0:00:45]} Rxc4 {[%emt 0:00:02]} 23. Rxa5 {[%emt 0:02:41]} Nc5 {[%emt 0:00:52]} 24. Rxc5 {[%emt 0:00:26]} Rxc5 {[%emt 0:00:01]} 25. Be7 {[%emt 0:00:02]} Ra5 {[%emt 0:00:51]} 26. Nb3 {[%emt 0:00:30]} Rb8 {[%emt 0:03:32]} 27. Rxc3 {[%emt 0:00:36]} Rxb3 {[%emt 0:00:57]} 28. Rc8+ {[%emt 0:00:13]} Kh7 {[%emt 0:00:01]} 29. g3 {[%emt 0:00:04]} Ra2 {[%emt 0:00:14]} 30. Rf8 {[%emt 0:00:20]} Kg6 {[%emt 0:00:05]} 31. Rg8 {[%emt 0:00:31]} Rb7 {[%emt 0:00:19]} 32. Bf8 {[%emt 0:00:00]} f6 {[%emt 0:00:01]} 33. Bc5 {[%emt 0:00:00]} a5 {[%emt 0:00:05]} 34. h4 {[%emt 0:00:00]} a4 {[%emt 0:00:02]} 35. g4 {[%emt 0:00:01]} Rc2 {[%emt 0:01:04]} 36. Ba3 {[%emt 0:00:08]} Rc3 {[%emt 0:00:05]} 37. Bd6 {[%emt 0:00:09]} Ra7 {[%emt 0:00:15]} 38. Rh8 {[%emt 0:00:10]} f5 {[%emt 0:01:39]} 39. h5+ {[%emt 0:00:32]} Kg5 {[%emt 0:00:13]} 40. Kg2 {[%emt 0:00:10]} Kxg4 {[%emt 0:00:06]} 41. Be5 {[%emt 0:00:15]} Rc4 {[%emt 0:00:19]} 42. Rb8 {[%emt 0:00:12]} a3 {[%emt 0:00:12]} 43. Rb1 {[%emt 0:00:01]} a2 {[%emt 0:00:06]} 44. Rh1 {[%emt 0:00:07]} f4 {[%emt 0:01:37]} 45. Bd4 {[%emt 0:00:21]} Rxd4 {[%emt 0:00:11]} 46. exd4 {[%emt 0:00:13] Check Result:-#11} a1=Q {[%emt 0:00:05]} 0-1

[Event "Asian Amateur Rapid 2024"]
[Site "Al Ain"]
[Date "2024.12.15"]
[Round "4.5"]
[White "Mujahid Bin Yazeed"]
[Black "Ghaith Saeed Alnuaimi"]
[Result "1-0"]
[ECO "B20"]
[WhiteElo "1837"]
[BlackElo "1870"]
[Annotator "NA COMBH"]
[PlyCount "75"]
[EventDate "2024.12.15"]
[EventType "swiss"]
[EventCountry "UAE"]
[SourceTitle "playchess.com"]
[Source "ChessBase"]
[SourceQuality "1"]
[TimeControl "900+10"]

1. e4 {[%emt 0:00:04]} c5 {[%emt 0:00:06]} 2. Nc3 {[%emt 0:00:07]} Nc6 {[%emt 0:00:08]} 3. a3 {[%emt 0:00:07]} e6 {[%emt 0:00:52]} 4. Bc4 {[%emt 0:00:31]} Nge7 {[%emt 0:00:08]} 5. Ba2 {[%emt 0:00:03]} g6 {[%emt 0:00:14]} 6. h4 {[%emt 0:00:18] B20: Sicilian: Unusual White 2nd moves.} h5 {[%emt 0:00:51]} 7. d3 {[%emt 0:00:20]} Bg7 {[%emt 0:00:07]} 8. Nh3 {[%emt 0:01:22]} d6 {[%emt 0:00:44]} 9. O-O {[%emt 0:01:26]} Rb8 {[%emt 0:00:18]} 10. Ng5 {[%emt 0:00:31]} b5 {[%emt 0:02:46]} 11. Ne2 {[%emt 0:02:03]} d5 {[%emt 0:00:21]} 12. c3 {[%emt 0:00:47]} O-O {[%emt 0:00:40]} 13. Bf4 {[%emt 0:00:21]} Rb7 {[%emt 0:00:35]} 14. Ng3 {[%emt 0:01:14]} e5 {[%emt 0:04:28]} 15. Bd2 {[%emt 0:01:32]} Bg4 {[%emt 0:00:05]} 16. Qc2 {[%emt 0:00:37]} c4 {[%emt 0:00:34]} 17. exd5 {[%emt 0:01:46]} Qxd5 {[%emt 0:00:02]} 18. dxc4 {[%emt 0:00:24]} bxc4 {[%emt 0:00:03]} 19. f3 {[%emt 0:00:42]} Bf5 {[%emt 0:00:27]} 20. Nxf5 {[%emt 0:00:39]} Nxf5 {[%emt 0:00:02]} 21. Rad1 {[%emt 0:00:17]} Qc5+ {[%emt 0:00:35]} 22. Kh2 {[%emt 0:00:10]} Nxh4 {[%emt 0:00:41]} 23. Ne4 {[%emt 0:00:05]} Qb6 {[%emt 0:01:05]} 24. Bc1 {[%emt 0:00:17]} Nf5 {[%emt 0:01:13]} 25. Bxc4 {[%emt 0:00:34]} Na5 {[%emt 0:00:08]} 26. Bd5 {[%emt 0:00:23]} Rc7 {[%emt 0:00:16]} 27. Rfe1 {[%emt 0:00:38]} Nc4 {[%emt 0:00:06]} 28. Qf2 {[%emt 0:00:46]} Qb8 {[%emt 0:00:43]} 29. Nc5 {[%emt 0:00:29]} Qb5 {[%emt 0:01:05]} 30. b4 {[%emt 0:00:16]} Nb6 {[%emt 0:00:09]} 31. Ba2 {[%emt 0:00:50]} Qc6 {[%emt 0:00:20]} 32. g4 {[%emt 0:00:15]} hxg4 {[%emt 0:00:08]} 33. fxg4 {[%emt 0:00:01]} Nh6 {[%emt 0:00:28]} 34. Qh4 {[%emt 0:00:22]} g5 {[%emt 0:00:09]} 35. Bxg5 {[%emt 0:00:14]} e4 {[%emt 0:00:10]} 36. Bf4 {[%emt 0:00:11]} Rcc8 {[%emt 0:00:09]} 37. Rd6 {[%emt 0:00:05]} Qe8 $18 {[%emt 0:00:10] Check Result:23.65} 38. Rxe4 {[%emt 0:00:10]} 1-0

[Event "Asian Amateur Rapid 2024"]
[Site "Al Ain"]
[Date "2024.12.15"]
[Round "4.6"]
[White "Mohamed Saeed Laily"]
[Black "Ebenezer, Joseph"]
[Result "1-0"]
[ECO "E99"]
[WhiteElo "1984"]
[BlackElo "1993"]
[Annotator "RC"]
[PlyCount "123"]
[EventDate "2024.12.15"]
[EventType "swiss"]
[EventCountry "UAE"]
[SourceTitle "playchess.com"]
[Source "ChessBase"]
[SourceQuality "1"]
[TimeControl "900+10"]

1. d4 {[%emt 0:00:02]} Nf6 {[%emt 0:00:02]} 2. c4 {[%emt 0:00:01]} g6 {[%emt 0:00:01]} 3. Nc3 {[%emt 0:00:02]} Bg7 {[%emt 0:00:00]} 4. e4 {[%emt 0:00:01]} d6 {[%emt 0:00:03]} 5. Nf3 {[%emt 0:00:01]} O-O {[%emt 0:00:02]} 6. Be2 {[%emt 0:00:01]} e5 {[%emt 0:00:17]} 7. O-O {[%emt 0:00:03]} Nc6 {[%emt 0:00:00]} 8. d5 {[%emt 0:00:01]} Ne7 {[%emt 0:00:01]} 9. Ne1 {[%emt 0:00:01]} Nd7 {[%emt 0:00:04]} 10. Nd3 {[%emt 0:00:02]} f5 {[%emt 0:00:03]} 11. f3 {[%emt 0:00:01]} f4 {[%emt 0:00:12]} 12. g4 {[%emt 0:00:02]} a5 {[%emt 0:00:17]} 13. Bd2 {[%emt 0:00:09]} c6 {[%emt 0:00:11]} 14. Be1 {[%emt 0:00:08]} Kh8 {[%emt 0:00:26]} 15. Bf2 {[%emt 0:00:05]} Bf6 {[%emt 0:00:01]} 16. Kg2 {[%emt 0:00:53]} Ng8 {[%emt 0:00:10]} 17. Qe1 {[%emt 0:02:00]} Rf7 {[%emt 0:00:11]} 18. Rd1 {[%emt 0:01:55]} Qe7 {[%emt 0:00:28]} 19. Rh1 {[%emt 0:05:06]} c5 {[%emt 0:02:30]} 20. h4 {[%emt 0:01:04]} h5 {[%emt 0:02:05]} 21. g5 {[%emt 0:00:05]} Bg7 {[%emt 0:00:30]} 22. Nb5 {[%emt 0:00:02]} Nb8 {[%emt 0:01:36]} 23. Qc3 {[%emt 0:02:08]} b6 {[%emt 0:00:21]} 24. b3 {[%emt 0:00:17]} Qd7 {[%emt 0:00:43]} 25. a3 {[%emt 0:00:16]} Na6 {[%emt 0:00:04]} 26. Ra1 {[%emt 0:00:08]} Nc7 {[%emt 0:00:45]} 27. Nxc7 {[%emt 0:01:11]} Qxc7 {[%emt 0:00:03]} 28. b4 {[%emt 0:00:13]} axb4 {[%emt 0:03:29]} 29. axb4 {[%emt 0:00:01]} Qb8 {[%emt 0:00:06]} 30. Rhb1 {[%emt 0:01:02]} Rfa7 {[%emt 0:02:25]} 31. Kg1 {[%emt 0:01:02]} Bf8 {[%emt 0:01:11]} 32. Rxa7 {[%emt 0:00:34]} Qxa7 {[%emt 0:00:55]} 33. bxc5 {[%emt 0:00:40]} bxc5 {[%emt 0:00:03]} 34. Nxf4 {[%emt 0:00:02]} Qa2 {[%emt 0:00:41]} 35. Rb2 {[%emt 0:01:06]} Qa1+ {[%emt 0:00:03]} 36. Kg2 {[%emt 0:00:03]} Ra3 {[%emt 0:00:24]} 37. Nxg6+ {[%emt 0:00:30]} Kg7 {[%emt 0:00:04]} 38. Qc2 {[%emt 0:00:08]} Kxg6 {[%emt 0:00:10]} 39. Rb1 {[%emt 0:00:20]} Qa2 {[%emt 0:00:28]} 40. Rb2 {[%emt 0:00:01]} Qa1 {[%emt 0:00:01]} 41. Rb1 {[%emt 0:00:33]} Rc3 {[%emt 0:00:30]} 42. Qd1 {[%emt 0:00:00]} Qa3 {[%emt 0:00:07]} 43. Be1 {[%emt 0:00:00]} Ne7 {[%emt 0:00:21]} 44. Bxc3 {[%emt 0:00:00]} Qxc3 {[%emt 0:00:01]} 45. Rb6 {[%emt 0:00:09]} Qe3 {[%emt 0:00:10]} 46. Rxd6+ {[%emt 0:00:03]} Kg7 {[%emt 0:00:00]} 47. Rf6 {[%emt 0:00:26]} Ng6 {[%emt 0:00:03]} 48. Kf1 {[%emt 0:00:14]} Bh3+ {[%emt 0:00:06]} 49. Ke1 {[%emt 0:00:03]} Nxh4 {[%emt 0:00:10]} 50. Qd3 {[%emt 0:00:13]} Qxg5 {[%emt 0:00:09]} 51. Ra6 {[%emt 0:00:08]} Ng2+ {[%emt 0:00:08]} 52. Kd1 {[%emt 0:00:12]} Be7 {[%emt 0:00:06]} 53. d6 {[%emt 0:00:03]} Ne3+ {[%emt 0:00:05]} 54. Ke1 {[%emt 0:00:13]} Qg1+ {[%emt 0:00:24]} 55. Kd2 {[%emt 0:00:03]} Bg5 {[%emt 0:00:02]} 56. Kc3 {[%emt 0:00:14]} Qe1+ {[%emt 0:01:02]} 57. Kb3 {[%emt 0:00:39]} Qb4+ 58. Ka2 {[%emt 0:00:10]} Be6 {[%emt 0:00:20]} 59. Ra7+ {[%emt 0:00:10]} Kh6 {[%emt 0:00:10]} 60. Qb3 {[%emt 0:00:10]} Nxc4 {[%emt 0:00:10]} 61. Qxb4 {[%emt 0:00:10]} cxb4 {[%emt 0:00:10]} 62. Bxc4 {[%emt 0:00:10]} 1-0

[Event "Asian Amateur Rapid 2024"]
[Site "Al Ain"]
[Date "2024.12.15"]
[Round "4.7"]
[White "Sendi, David V"]
[Black "Lovakov, Egor Vlad"]
[Result "0-1"]
[ECO "C42"]
[WhiteElo "1747"]
[BlackElo "1763"]
[Annotator "NA COMBH"]
[PlyCount "110"]
[EventDate "2024.12.15"]
[EventType "swiss"]
[EventCountry "UAE"]
[SourceTitle "playchess.com"]
[Source "ChessBase"]
[SourceQuality "1"]
[TimeControl "900+10"]

1. e4 {[%emt 0:00:02]} e5 {[%emt 0:00:02]} 2. Nf3 {[%emt 0:00:02]} Nf6 {[%emt 0:00:01]} 3. Nxe5 {[%emt 0:00:02]} d6 {[%emt 0:00:02]} 4. Nf3 {[%emt 0:00:02]} Nxe4 {[%emt 0:00:02]} 5. Nc3 {[%emt 0:00:11]} Nxc3 {[%emt 0:00:02]} 6. dxc3 {[%emt 0:00:01]} Be7 {[%emt 0:00:02]} 7. Be3 {[%emt 0:00:09]} O-O {[%emt 0:00:03]} 8. Qd2 {[%emt 0:00:07]} Nd7 {[%emt 0:00:02]} 9. O-O-O {[%emt 0:00:28]} c6 {[%emt 0:00:03]} 10. h4 {[%emt 0:00:44]} d5 {[%emt 0:02:28]} 11. Bd3 {[%emt 0:01:24]} Nc5 {[%emt 0:01:23]} 12. Rhg1 {[%emt 0:00:52]} Bg4 {[%emt 0:01:54]} 13. Rde1 {[%emt 0:00:47]} Ne4 {[%emt 0:01:01]} 14. Bxe4 {[%emt 0:00:56]} dxe4 {[%emt 0:00:03]} 15. Ng5 {[%emt 0:01:57]} Qa5 {[%emt 0:02:37]} 16. Kb1 {[%emt 0:00:13]} Rad8 {[%emt 0:01:12]} 17. Qc1 {[%emt 0:00:20]} h6 {[%emt 0:00:41]} 18. f3 {[%emt 0:01:52]} Bxg5 {[%emt 0:02:03]} 19. fxg4 {[%emt 0:01:20]} Bxh4 {[%emt 0:00:26]} 20. g3 {[%emt 0:01:25]} Bg5 {[%emt 0:00:11]} 21. Bxg5 {[%emt 0:00:13]} Qxg5 {[%emt 0:00:08]} 22. Qxg5 {[%emt 0:00:54]} hxg5 {[%emt 0:00:01]} 23. Rxe4 {[%emt 0:00:07]} Rfe8 {[%emt 0:00:13]} 24. Ra4 {[%emt 0:01:23]} a6 {[%emt 0:00:07]} 25. Rb4 {[%emt 0:00:14]} b5 {[%emt 0:00:14]} 26. a4 {[%emt 0:00:50]} c5 {[%emt 0:00:58]} 27. Rb3 {[%emt 0:00:13]} c4 {[%emt 0:00:28]} 28. Rb4 {[%emt 0:00:13]} Rd5 {[%emt 0:00:08]} 29. axb5 {[%emt 0:00:11]} axb5 {[%emt 0:00:01]} 30. b3 {[%emt 0:00:13]} Re4 {[%emt 0:00:14]} 31. bxc4 {[%emt 0:00:11]} bxc4 {[%emt 0:00:05]} 32. Rb8+ {[%emt 0:01:09]} Kh7 {[%emt 0:00:01]} 33. Rb6 {[%emt 0:00:21]} g6 {[%emt 0:00:50]} 34. Rb7 {[%emt 0:00:19]} Kg8 {[%emt 0:01:09]} 35. Rf1 {[%emt 0:00:23]} f5 {[%emt 0:00:43]} 36. gxf5 {[%emt 0:00:09]} Rxf5 {[%emt 0:00:53]} 37. Rb8+ {[%emt 0:00:47]} Kg7 {[%emt 0:00:08]} 38. Rb7+ {[%emt 0:00:05]} Kf6 {[%emt 0:00:31]} 39. Rb6+ {[%emt 0:00:18]} Re6 {[%emt 0:00:09]} 40. Rxe6+ {[%emt 0:00:01]} Kxe6 {[%emt 0:00:01]} 41. Rg1 {[%emt 0:00:27]} Rf3 {[%emt 0:00:17]} 42. Kc1 {[%emt 0:00:06]} Kf5 {[%emt 0:00:18]} 43. Kd2 {[%emt 0:00:01]} Kg4 {[%emt 0:00:03]} 44. Re1 {[%emt 0:00:02]} Kxg3 {[%emt 0:00:04]} 45. Rg1+ {[%emt 0:00:02]} Kf4 {[%emt 0:00:02]} 46. Rh1 {[%emt 0:00:08]} Rf2+ {[%emt 0:00:12]} 47. Kd1 {[%emt 0:00:01]} g4 {[%emt 0:00:03]} 48. Rh6 {[%emt 0:00:30]} Kg5 {[%emt 0:00:25]} 49. Rh8 {[%emt 0:00:09]} g3 {[%emt 0:00:03]} 50. Ke1 {[%emt 0:00:00]} Rf4 {[%emt 0:00:26]} 51. Rh3 {[%emt 0:00:17]} Kg4 {[%emt 0:00:03]} 52. Rh6 {[%emt 0:00:01]} g5 {[%emt 0:00:03]} 53. Rh1 {[%emt 0:00:08]} g2 {[%emt 0:00:01]} 54. Rg1 {[%emt 0:00:01]} Rf1+ {[%emt 0:00:11]} 55. Rxf1 {[%emt 0:00:02] Check Result:-#16} gxf1=Q+ {[%emt 0:00:11]} 0-1